fUSD/lending_fUSD_20240506
["ID","MTS","AMOUNT","RATE_DAILY","PERIOD"]
[326520536,1715038270003,-699.16,0.00025205,2]
[326520537,1715038270014,-500.0,0.00025205,2]
[326520538,1715038270025,-500.0,0.00025205,2]
[326520539,1715038270035,-151.0,0.00025205,7]
[326520540,1715038270046,-500.0,0.00025205,2]
[326520541,1715038270057,-1010.85,0.00025205,2]
[326520542,1715038270068,-500.0,0.00025205,2]
[326520543,1715038270078,-500.0,0.00025205,2]
[326520544,1715038270088,-1720.59,0.00025205,2]
[326520545,1715038270099,-500.0,0.00025205,2]
[326520546,1715038270109,-829.09,0.00025205,2]
[326520547,1715038270120,-1235.1,0.00025205,2]
[326520548,1715038270130,-1164.84,0.00025205,2]
[326520549,1715038270140,-1330.98,0.00025205,2]
[326520550,1715038270150,-1214.12,0.00025205,2]
[326520551,1715038270161,-500.0,0.00025205,2]
[326520552,1715038270171,-500.0,0.00025205,2]
[326520553,1715038270183,-500.0,0.00025205,2]
[326520554,1715038270194,-7864.91,0.00025205,2]
[326520555,1715038270205,-500.0,0.00025205,2]
[326520556,1715038270216,-812.88,0.00025205,2]
[326520557,1715038270228,-969.08,0.00025205,2]
[326520558,1715038270238,-1080.19,0.00025205,2]
[326520559,1715038270249,-2405.8,0.00025205,2]
[326520560,1715038270259,-500.0,0.00025205,2]
[326520561,1715038270270,-1129.87,0.00025205,2]
[326520562,1715038270280,-500.0,0.00025205,2]
[326520563,1715038270291,-1022.82,0.00025205,2]
[326520564,1715038270301,-1226.07,0.00025205,2]
[326520565,1715038270312,-151.0,0.00025205,7]
[326520566,1715038270323,-500.0,0.00025205,2]
[326520567,1715038270333,-841.39,0.00025205,2]
[326520568,1715038270345,-500.0,0.00025205,2]
[326520569,1715038270355,-1462.73,0.00025205,2]
[326520570,1715038270371,-30193.38,0.00025205,2]
[326520571,1715038270381,-500.0,0.00025205,2]
[326520572,1715038270391,-505.52,0.00025205,2]
[326520573,1715038270401,-1545.91,0.00025205,2]
[326520574,1715038270412,-151.0,0.00025205,7]
[326520575,1715038270422,-500.0,0.00025205,2]
[326520576,1715038270433,-500.0,0.00025205,2]
[326520577,1715038270444,-1567.28,0.00025205,2]
[326520578,1715038270455,-1396.08,0.00025205,2]
[326520579,1715038270465,-500.0,0.00025205,2]
[326520580,1715038270476,-500.0,0.00025205,2]
[326520581,1715038270486,-151.0,0.00025205,7]
[326520582,1715038270499,-500.0,0.00025205,2]
[326520583,1715038270509,-151.0,0.00025205,7]
[326520584,1715038270519,-500.0,0.00025205,2]
[326520585,1715038270529,-500.0,0.00025205,2]
[326520586,1715038270539,-1086.58,0.00025205,2]
[326520587,1715038270549,-500.0,0.00025205,2]
[326520588,1715038270559,-500.0,0.00025205,2]
[326520589,1715038270571,-1292.36,0.00025205,2]
[326520590,1715038270581,-832.34,0.00025205,2]
[326520591,1715038270591,-597.25,0.00025205,2]
[326520592,1715038270601,-1314.03,0.00025205,2]
[326520593,1715038270611,-500.0,0.00025205,2]
[326520594,1715038270622,-591.76,0.00025205,2]
[326520595,1715038270632,-576.8,0.00025205,2]
[326520596,1715038270642,-500.0,0.00025205,2]
[326520597,1715038270652,-1046.43,0.00025205,2]
[326520598,1715038270663,-153.603735,0.00025205,7]
[326520599,1715038270673,-15096.63,0.00025205,2]
[326520600,1715038270684,-500.0,0.00025205,2]
[326520601,1715038270694,-2472.76,0.00025205,2]
[326520602,1715038270704,-151.0,0.00025205,7]
[326520603,1715038270714,-500.0,0.00025205,2]
[326520604,1715038270724,-1535.54,0.00025205,2]
[326520605,1715038270734,-1283.18,0.00025205,2]
[326520606,1715038270744,-500.0,0.00025205,2]
[326520607,1715038270754,-500.0,0.00025205,2]
[326520608,1715038270764,-1007.48,0.00025205,2]
[326520609,1715038270775,-2149.96,0.00025205,2]
[326520610,1715038270785,-500.0,0.00025205,2]
[326520611,1715038270795,-500.0,0.00025205,2]
[326520612,1715038270805,-538.51,0.00025205,2]
[326520613,1715038270815,-591.51,0.00025205,2]
[326520614,1715038270824,-853.45,0.00025205,2]
[326520615,1715038270834,-1109.21,0.00025205,2]
[326520616,1715038270845,-500.0,0.00025205,2]
[326520617,1715038270855,-577.7,0.00025205,2]
[326520618,1715038270870,-948.52,0.00025205,2]
[326520619,1715038270881,-541.9,0.00025205,2]
[326520620,1715038270890,-986.21,0.00025205,2]
[326520621,1715038270901,-500.0,0.00025205,2]
[326520622,1715038270911,-500.0,0.00025205,2]
[326520623,1715038270922,-576.93,0.00025205,2]
[326520624,1715038270933,-731.33,0.00025205,2]
[326520625,1715038270944,-151.0,0.00025205,7]
[326520626,1715038270955,-675.95,0.00025205,2]
[326520627,1715038270965,-500.0,0.00025205,2]
[326520628,1715038270974,-2106.34,0.00025205,2]
[326520629,1715038270985,-151.0,0.00025205,7]
[326520630,1715038270995,-5317.75,0.00025205,2]
[326520631,1715038271005,-500.0,0.00025205,2]
[326520632,1715038271016,-2996.62,0.00025205,2]
[326520633,1715038271026,-593.91,0.00025205,2]
[326520634,1715038271036,-916.54,0.00025205,2]
[326520635,1715038271046,-500.0,0.00025205,2]
[326520636,1715038271056,-974.65,0.00025205,2]
[326520637,1715038271067,-605.51,0.00025205,2]
[326520638,1715038271077,-500.0,0.00025205,2]
[326520639,1715038271086,-610.54,0.00025205,2]
[326520640,1715038271096,-1231.37,0.00025205,2]
[326520641,1715038271106,-500.0,0.00025205,2]
[326520642,1715038271116,-1756.38,0.00025205,2]
[326520643,1715038271126,-500.0,0.00025205,2]
[326520644,1715038271137,-3077.56,0.00025205,2]
[326520645,1715038271147,-1026.93,0.00025205,2]
[326520646,1715038271158,-1275.77,0.00025205,2]
[326520647,1715038271168,-3974.46,0.00025205,2]
[326520648,1715038271179,-151.0,0.00025205,7]
[326520649,1715038271191,-1106.92,0.00025205,2]
[326520650,1715038271202,-500.0,0.00025205,2]
[326520651,1715038271212,-4932.58,0.00025205,2]
[326520652,1715038271222,-510.44,0.00025205,2]
[326520653,1715038271232,-940.91,0.00025205,2]
[326520654,1715038271242,-500.0,0.00025205,2]
[326520655,1715038271252,-2317.0,0.00025205,2]
[326520656,1715038271263,-1182.57,0.00025205,2]
[326520657,1715038271273,-500.0,0.00025205,2]
[326520658,1715038271283,-500.0,0.00025205,2]
[326520659,1715038271293,-2756.18,0.00025205,2]
[326520660,1715038271304,-20790.9,0.00025205,2]
[326520661,1715038271313,-1264.43,0.00025205,2]
[326520662,1715038271323,-990.14,0.00025205,2]
[326520663,1715038271333,-500.0,0.00025205,2]
[326520664,1715038271343,-183.672902,0.00025205,7]
[326520665,1715038271354,-500.0,0.00025205,2]
[326520666,1715038271368,-1488.28,0.00025205,2]
[326520667,1715038271380,-500.0,0.00025205,2]
[326520668,1715038271391,-500.0,0.00025205,2]
[326520669,1715038271401,-183.672902,0.00025205,7]
[326520670,1715038271411,-1117.51,0.00025205,2]
[326520671,1715038271421,-837.38,0.00025205,2]
[326520672,1715038271433,-1495.28,0.00025205,2]
[326520673,1715038271443,-500.0,0.00025205,2]
[326520674,1715038271453,-654.85,0.00025205,2]
[326520675,1715038271463,-2070.55,0.00025205,2]
[326520676,1715038271473,-151.0,0.00025205,7]
[326520677,1715038271483,-1905.04,0.00025205,2]
[326520678,1715038271493,-706.11350296,0.00025205,2]
[326520679,1715038272113,-423.45649704,0.00025205,2]
[326520680,1715038272123,-2075.48,0.00025205,2]
[326520681,1715038272133,-1498.3,0.00025205,2]
[326520682,1715038272144,-500.0,0.00025205,2]
[326520683,1715038272154,-500.0,0.00025205,2]
[326520684,1715038272164,-576.39,0.00025205,2]
[326520685,1715038272174,-500.0,0.00025205,2]
[326520686,1715038272185,-541.43,0.00025205,2]
[326520687,1715038272196,-1239.14,0.00025205,2]
[326520688,1715038272206,-1950.91,0.00025205,2]
[326520689,1715038272217,-2320.43,0.00025205,2]
[326520690,1715038272263,-3548.51,0.00025205,2]
[326520691,1715038272292,-500.0,0.00025205,2]
[326520692,1715038272333,-1257.01,0.00025205,2]
[326520693,1715038272385,-500.0,0.00025205,2]
[326520694,1715038272398,-818.5,0.00025205,2]
[326520695,1715038272408,-4029.78,0.00025205,2]
[326520696,1715038272419,-717.38,0.00025205,2]
[326520697,1715038272430,-500.0,0.00025205,2]
[326520698,1715038272442,-1100.17,0.00025205,2]
[326520699,1715038272453,-560.14,0.00025205,2]
[326520700,1715038272462,-4013.56,0.00025205,2]
[326520701,1715038272472,-500.0,0.00025205,2]
[326520702,1715038272483,-1111.41,0.00025205,2]
[326520703,1715038272493,-500.0,0.00025205,2]
[326520704,1715038272504,-1015.22,0.00025205,2]
[326520705,1715038272517,-9305.88,0.00025205,2]
[326520706,1715038272529,-2130.11,0.00025205,2]
[326520707,1715038272540,-4849.21,0.00025205,2]
[326520708,1715038272551,-2716.22,0.00025205,2]
[326520709,1715038272562,-500.0,0.00025205,2]
[326520710,1715038272572,-2778.1,0.00025205,2]
[326520711,1715038272583,-1922.03994639,0.00025205,2]
[326520712,1715038272597,-6343.85005361,0.00025205,2]
[326520713,1715038272607,-500.0,0.00025205,2]
[326520714,1715038272617,-500.0,0.00025205,2]
[326520715,1715038272629,-151.0,0.00025205,7]
[326520716,1715038272640,-500.0,0.00025205,2]
[326520717,1715038272653,-500.0,0.00025205,2]
[326520718,1715038272663,-500.0,0.00025205,2]
[326520719,1715038272674,-500.0,0.00025205,2]
[326520720,1715038272684,-1791.84,0.00025205,2]
[326520721,1715038272695,-500.0,0.00025205,2]
[326520722,1715038272706,-2504.12,0.00025205,2]
[326520723,1715038272716,-500.0,0.00025205,2]
[326520724,1715038272729,-980.75,0.00025205,2]
[326520725,1715038272739,-948.57,0.00025205,2]
[326520726,1715038272749,-520.02,0.00025205,2]
[326520727,1715038272759,-1314.36,0.00025205,2]
[326520728,1715038272769,-4331.01,0.00025205,2]
[326520729,1715038272779,-151.0,0.00025205,7]
[326520730,1715038272789,-1227.21460394,0.00025205,2]
[326520754,1715039433629,-266.51338712,0.000123,2]
[326520755,1715039433639,-11.42924151,0.000124,2]
[326520756,1715039433651,-245.98105627,0.000124,2]
[326520757,1715039433661,-168.97130789,0.000124,2]
[326520758,1715039433672,-406.13838012,0.000124,2]
[326520761,1715039433947,-253.27787677,0.000124,2]
[326520763,1715039433957,-200.23212323,0.00012499,2]
[326520765,1715039433969,-7211.0,0.00012499,2]
[326520767,1715039433980,-500.0,0.00012499,2]
[326520925,1715039438496,-627.28584509,0.00012499,2]
[326520926,1715039438507,-311.75649,0.00012499,2]
[326520927,1715039438716,-6711.01094168,0.00012499,2]
[326520928,1715039438725,-11324.7784416,0.00012598,2]
[326520929,1715039438736,-494.0898,0.00012599,2]
[326520930,1715039438745,-847.0471,0.00012599,2]
[326520931,1715039438755,-6567.4077,0.00012599,2]
[326520932,1715039438765,-256.483,0.00012599,2]
[326520933,1715039438775,-3055.51863775,0.00012697,2]
[326520934,1715039438784,-2322.19297934,0.00012698,2]
[326520935,1715039438795,-130088.7783,0.00012699,2]
[326520936,1715039438808,-500.0,0.00012699,2]
[326520937,1715039438818,-12616.9131787,0.000128,2]
[326520938,1715039438829,-150.99,0.000128,2]
[326520939,1715039438838,-2500.0,0.000129,2]
[326520940,1715039438847,-301.98,0.000129,2]
[326520941,1715039438857,-188.03404075,0.0001299,2]
[326520942,1715039438866,-166.14,0.0001299,2]
[326520943,1715039438875,-188.65310695,0.00013,2]
[326520944,1715039438885,-578894.70544615,0.00013,2]
[326520945,1715039438897,-72232.05546297,0.00013,2]
[326520946,1715039438908,-3370.01740563,0.00013,2]
[326520948,1715039440691,-13160.09075898,0.00013,2]
[326520949,1715039440703,-351.12494235,0.00013,2]
[326520950,1715039440720,-549.80271798,0.00013,2]
[326520951,1715039440734,-2945.99999991,0.00013,2]
[326520952,1715039440746,-9136.80152,0.00013,2]
[326520953,1715039440758,-13144.26368001,0.00013,2]
[326520954,1715039440770,-7102.69264074,0.00013,2]
[326520955,1715039440781,-1121.2213578,0.00013,2]
[326520956,1715039440793,-257.59616578,0.00013,2]
[326520957,1715039441129,-9895.11988648,0.00013,2]
[326520960,1715039441141,-1620.000003,0.00013,2]
[326520961,1715039441152,-2120455.62176773,0.00013,2]
[326520964,1715039441174,-4213.32711154,0.00015,2]
[326520965,1715039441185,-1920.11646788,0.00015273,2]
[326520966,1715039441200,-22971.22827429,0.00015273,2]
[326520967,1715039441209,-289.12742902,0.00015273,2]
[326520968,1715039441219,-193.16,0.00015373,2]
[326520969,1715039441228,-823.99,0.00015529,2]
[326520970,1715039441239,-200.0,0.00015673,2]
[326520971,1715039441248,-500.0,0.00015794,2]
[326520972,1715039441257,-186.15704986,0.000159,2]
[326520973,1715039441268,-150.0,0.00015973,2]
[326520974,1715039441281,-161.40343125,0.00016387,2]
[326520975,1715039441291,-1125.69656936,0.000165,2]
[326520976,1715039441300,-1280.34,0.00016512,2]
[326520977,1715039441309,-151.8721283,0.00016555,2]
[326520978,1715039441318,-1000.0,0.00016901,2]
[326520979,1715039441328,-151.8721283,0.00017067,2]
[326520980,1715039441337,-158.20054459,0.00017166,2]
[326520981,1715039441346,-161.40343125,0.00017287,2]
[326520982,1715039441355,-823.99,0.0001747,2]
[326520983,1715039441364,-155.43631613,0.00017623,2]
[326520984,1715039441373,-15400.77350712,0.0001788,2]
[326520985,1715039441382,-15400.77350708,0.0001788,2]
[326520986,1715039441391,-15400.77350708,0.0001788,2]
[326520987,1715039441400,-15400.77350708,0.0001788,2]
[326520988,1715039441410,-1250.0,0.00018,3]
[326520989,1715039441419,-152.73358246,0.00018425,2]
[326520990,1715039441429,-161.40343126,0.00018586,2]
[326520991,1715039441439,-154.66029368,0.00018604,2]
[326520992,1715039441448,-152.73358246,0.00018668,2]
[326520993,1715039441458,-23369.934594,0.00019,5]
[326520994,1715039441467,-5000.0,0.00019,2]
[326520995,1715039441476,-155.0,0.00019,2]
[326520996,1715039441485,-1000.0,0.00019014,2]
[326520997,1715039441495,-158.20054459,0.00019042,2]
[326520998,1715039441505,-1000.0,0.00019091,2]
[326520999,1715039441515,-500.0,0.00019178,2]
[326521000,1715039441524,-500.0,0.00019178,2]
[326521001,1715039441533,-364.76170098,0.00019178,2]
[326521002,1715039441542,-518.41475173,0.00019178,2]
[326521003,1715039441551,-500.0,0.00019178,2]
[326521004,1715039441560,-500.0,0.00019178,2]
[326521005,1715039441570,-500.0,0.00019178,2]
[326521006,1715039441580,-500.0,0.00019178,2]
[326521007,1715039441590,-500.0,0.00019178,2]
[326521008,1715039441599,-500.0,0.00019178,2]
[326521009,1715039441608,-500.0,0.00019178,2]
[326521010,1715039441617,-500.0,0.00019178,2]
[326521011,1715039441627,-500.0,0.00019178,2]
[326521012,1715039441660,-500.0,0.00019178,2]
[326521013,1715039441670,-500.0,0.00019178,2]
[326521014,1715039441683,-500.0,0.00019178,2]
[326521015,1715039441693,-500.0,0.00019178,2]
[326521016,1715039441703,-500.0,0.00019178,2]
[326521017,1715039441714,-500.0,0.00019178,2]
[326521018,1715039441723,-500.0,0.00019178,2]
[326521019,1715039441733,-477.67595535,0.00019178,2]
[326521020,1715039441742,-500.0,0.00019178,2]
[326521021,1715039441752,-500.0,0.00019178,2]
[326521022,1715039441761,-500.0,0.00019178,2]
[326521023,1715039441771,-500.0,0.00019178,2]
[326521024,1715039441781,-500.0,0.00019178,2]
[326521025,1715039441791,-500.0,0.00019178,2]
[326521026,1715039441800,-500.0,0.00019178,2]
[326521027,1715039441815,-500.0,0.00019178,2]
[326521028,1715039441824,-596.03550393,0.00019178,2]
[326521029,1715039441833,-500.0,0.00019178,2]
[326521030,1715039441843,-500.0,0.00019178,2]
[326521031,1715039441852,-500.0,0.00019178,2]
[326521032,1715039441862,-500.0,0.00019178,2]
[326521033,1715039441871,-500.0,0.00019178,2]
[326521034,1715039441880,-500.0,0.00019178,2]
[326521035,1715039441889,-500.0,0.00019178,2]
[326521036,1715039441898,-199.88065081,0.00019178,2]
[326521037,1715039441907,-500.0,0.00019178,2]
[326521038,1715039441916,-500.0,0.00019178,2]
[326521039,1715039441925,-500.0,0.00019178,2]
[326521040,1715039441935,-500.0,0.00019178,2]
[326521041,1715039441943,-500.0,0.00019178,2]
[326521042,1715039441953,-500.0,0.00019178,2]
[326521043,1715039441964,-500.0,0.00019178,2]
[326521044,1715039441973,-500.0,0.00019178,2]
[326521045,1715039441983,-500.0,0.00019178,2]
[326521046,1715039441991,-500.0,0.00019178,2]
[326521047,1715039442000,-500.0,0.00019178,2]
[326521048,1715039442010,-500.0,0.00019178,2]
[326521049,1715039442018,-500.0,0.00019178,2]
[326521050,1715039442027,-500.0,0.00019178,2]
[326521051,1715039442036,-500.0,0.00019178,2]
[326521052,1715039442046,-500.0,0.00019178,2]
[326521053,1715039442055,-500.0,0.00019178,2]
[326521054,1715039442064,-500.0,0.00019178,2]
[326521055,1715039442074,-500.0,0.00019178,2]
[326521056,1715039442082,-500.0,0.00019178,2]
[326521057,1715039442092,-225.0,0.00019178,2]
[326521058,1715039442101,-155.07,0.00019178,2]
[326521059,1715039442110,-180.07,0.00019178,2]
[326521060,1715039442120,-3875.26447468,0.000192,2]
[326521061,1715039442129,-1421.61,0.000192,2]
[326521062,1715039442138,-754.39,0.000192,2]
[326521063,1715039442161,-1428.23,0.000192,2]
[326521064,1715039442170,-15400.77350708,0.00019253,2]
[326521065,1715039442180,-823.99,0.00019411,2]
[326521066,1715039442189,-152.73358246,0.0001988,2]
[326521067,1715039442203,-191.46877391,0.000199,2]
[326521068,1715039442214,-191.46877308,0.000199,2]
[326521069,1715039442224,-191.46877308,0.000199,2]
[326521070,1715039442233,-191.46877308,0.000199,2]
[326521071,1715039442244,-191.46877308,0.000199,2]
[326521072,1715039442254,-191.46877308,0.000199,2]
[326521073,1715039442264,-191.46877308,0.000199,2]
[326521074,1715039442273,-191.46877308,0.000199,2]
[326521075,1715039442287,-191.46877308,0.000199,2]
[326521076,1715039442298,-191.46877308,0.000199,2]
[326521077,1715039442308,-191.46877308,0.000199,2]
[326521078,1715039442318,-191.46877308,0.000199,2]
[326521079,1715039442328,-191.46877308,0.000199,2]
[326521080,1715039442338,-191.46877308,0.000199,2]
[326521081,1715039442347,-191.46877308,0.000199,2]
[326521082,1715039442357,-191.46877308,0.000199,2]
[326521083,1715039442366,-191.46877308,0.000199,2]
[326521084,1715039442375,-191.46877308,0.000199,2]
[326521085,1715039442384,-191.46877308,0.000199,2]
[326521086,1715039442394,-191.46877308,0.000199,2]
[326521087,1715039442403,-191.46877308,0.000199,2]
[326521088,1715039442412,-191.46877308,0.000199,2]
[326521089,1715039442422,-191.46877308,0.000199,2]
[326521090,1715039442431,-191.46877308,0.000199,2]
[326521091,1715039442441,-191.46877308,0.000199,2]
[326521092,1715039442450,-191.46877308,0.000199,2]
[326521093,1715039442462,-191.46877308,0.00019907,2]
[326521094,1715039442471,-152.73358246,0.00019948,2]
[326521095,1715039442480,-68159.2649872,0.0001999,2]
[326521096,1715039442490,-155.0,0.0002,2]
[326521097,1715039442499,-1300.0,0.0002,3]
[326521098,1715039442509,-191.46877308,0.00020076,2]
[326521099,1715039442519,-191.46877308,0.00020246,2]
[326521100,1715039442528,-191.46877308,0.00020415,2]
[326521101,1715039442538,-151.8721283,0.00020448,2]
[326521102,1715039442547,-191.46877308,0.00020584,2]
[326521103,1715039442556,-151.8721283,0.00020634,2]
[326521104,1715039442565,-167.0,0.00020682,2]
[326521105,1715039442575,-191.46877308,0.00020754,2]
[326521106,1715039442584,-155.0,0.000209,2]
[326521107,1715039442593,-15400.77350708,0.00020917,2]
[326521108,1715039442602,-191.46877308,0.00020923,2]
[326521109,1715039442611,-22971.22827428,0.00021087,2]
[326521110,1715039442620,-191.46877308,0.00021093,2]
[326521111,1715039442632,-289.127429,0.00021126,2]
[326521112,1715039442641,-1000.0,0.00021126,2]
[326521113,1715039442650,-191.46877308,0.00021262,2]
[326521114,1715039442660,-823.99,0.00021352,2]
[326521115,1715039442669,-191.46877308,0.00021432,2]
[326521116,1715039442678,-191.46877308,0.00021601,2]
[326521117,1715039442689,-191.46877308,0.00021771,2]
[326521118,1715039442698,-158.20054459,0.00021791,2]
[326521119,1715039442707,-1104.72513057,0.00021798,2]
[326521120,1715039442717,-151.8721283,0.00021863,2]
[326521121,1715039442726,-6760.2217293,0.000219,2]
[326521122,1715039442736,-250.0,0.00021918,2]
[326521123,1715039442744,-250.0,0.00021918,2]
[326521124,1715039442754,-174.31,0.00021918,2]
[326521125,1715039442763,-191.46877308,0.0002194,2]
[326521126,1715039442772,-1350.0,0.00022,3]
[326521127,1715039442781,-894.45046993,0.00022,2]
[326521128,1715039442790,-894.45046993,0.00022,2]
[326521129,1715039442799,-894.45046993,0.00022,2]
[326521130,1715039442810,-894.45046993,0.00022,2]
[326521131,1715039442821,-894.45046993,0.00022,2]
[326521132,1715039442830,-894.45046993,0.00022,2]
[326521133,1715039442840,-894.45046993,0.00022,2]
[326521134,1715039442849,-894.45046993,0.00022,2]
[326521135,1715039442858,-894.45046993,0.00022,2]
[326521136,1715039442867,-894.45046993,0.00022,2]
[326521137,1715039442876,-894.45046993,0.00022,2]
[326521138,1715039442885,-894.45046993,0.00022,2]
[326521139,1715039442894,-894.45046993,0.00022,2]
[326521140,1715039442903,-894.45046993,0.00022,2]
[326521141,1715039442912,-894.45046993,0.00022,2]
[326521142,1715039442921,-894.45046993,0.00022,2]
[326521143,1715039442931,-894.45046993,0.00022,2]
[326521144,1715039442940,-894.45046993,0.00022,2]
[326521145,1715039442949,-894.45046993,0.00022,2]
[326521146,1715039442959,-894.45046993,0.00022,2]
[326521147,1715039442969,-894.45046993,0.00022,2]
[326521148,1715039442978,-894.45046993,0.00022,2]
[326521149,1715039442988,-894.45046993,0.00022,2]
[326521150,1715039442997,-894.45046993,0.00022,2]
[326521151,1715039443006,-894.45046993,0.00022,2]
[326521152,1715039443016,-894.45046993,0.00022,2]
[326521153,1715039443025,-894.45046993,0.00022,2]
[326521154,1715039443034,-894.45046993,0.00022,2]
[326521155,1715039443044,-894.45046993,0.00022,2]
[326521156,1715039443053,-894.45046993,0.00022,2]
[326521157,1715039443062,-894.45046993,0.00022,2]
[326521158,1715039443071,-894.45046993,0.00022,2]
[326521159,1715039443080,-894.45046993,0.00022,2]
[326521160,1715039443089,-894.45046993,0.00022,2]
[326521161,1715039443098,-894.45046993,0.00022,2]
[326521162,1715039443107,-894.45046993,0.00022,2]
[326521163,1715039443116,-894.45046993,0.00022,2]
[326521164,1715039443126,-894.45046993,0.00022,2]
[326521165,1715039443135,-894.45046993,0.00022,2]
[326521166,1715039443144,-894.45046993,0.00022,2]
[326521167,1715039443153,-894.45046993,0.00022,2]
[326521168,1715039443162,-894.45046993,0.00022,2]
[326521169,1715039443171,-894.45046993,0.00022,2]
[326521170,1715039443180,-894.45046993,0.00022,2]
[326521171,1715039443189,-894.45046993,0.00022,2]
[326521172,1715039443216,-894.45046993,0.00022,2]
[326521173,1715039443230,-894.45046993,0.00022,2]
[326521174,1715039443240,-894.45046993,0.00022,2]
[326521175,1715039443249,-894.45046993,0.00022,2]
[326521176,1715039443262,-894.45046993,0.00022,2]
[326521177,1715039443273,-894.45046993,0.00022,2]
[326521178,1715039443282,-894.45046993,0.00022,2]
[326521179,1715039443292,-894.45046993,0.00022,2]
[326521180,1715039443301,-894.45046993,0.00022,2]
[326521181,1715039443311,-894.45046993,0.00022,2]
[326521182,1715039443320,-894.45046993,0.00022,2]
[326521183,1715039443329,-894.45046993,0.00022,2]
[326521184,1715039443338,-894.45046993,0.00022,2]
[326521185,1715039443347,-191.46877308,0.0002211,2]
[326521186,1715039443356,-754.39,0.000222,2]
[326521187,1715039443365,-1428.23,0.000222,2]
[326521188,1715039443374,-191.46877308,0.00022279,2]
[326521189,1715039443383,-1000.0,0.00022289,2]
[326521190,1715039443392,-191.46877308,0.00022449,2]
[326521191,1715039443402,-2574.3224535,0.0002254,2]
[326521192,1715039443411,-15400.77350708,0.0002258,2]
[326521193,1715039443420,-1421.61,0.000226,2]
[326521194,1715039443430,-191.46877308,0.00022618,2]
[326521195,1715039443439,-152.83783517,0.00022784,2]
[326521196,1715039443448,-191.46877308,0.00022788,2]
[326521197,1715039443457,-191.46877308,0.00022957,2]
[326521198,1715039443466,-756.14761576,0.00023,2]
[326521199,1715039443475,-17699.97824205,0.00023,2]
[326521200,1715039443487,-463.0,0.00023023,2]
[326521201,1715039443497,-971.0,0.00023023,2]
[326521202,1715039443506,-1397.0,0.00023023,2]
[326521203,1715039443515,-1227.0,0.00023023,2]
[326521204,1715039443523,-1259.0,0.00023023,2]
[326521205,1715039443532,-543.0,0.00023023,2]
[326521206,1715039443541,-2298.0,0.00023023,2]
[326521207,1715039443550,-437.0,0.00023023,2]
[326521209,1715039443559,-610.0,0.00023023,2]
[326521210,1715039443569,-808.0,0.00023023,2]
[326521211,1715039443578,-1787.0,0.00023023,2]
[326521212,1715039443587,-150.0,0.00023023,2]
[326521213,1715039443596,-150.0,0.00023023,2]
[326521214,1715039443606,-2448.0,0.00023023,2]
[326521215,1715039443614,-1477.0,0.00023023,2]
[326521216,1715039443624,-421.0,0.00023023,2]
[326521217,1715039443633,-444.0,0.00023023,2]
[326521218,1715039443641,-215.0,0.00023023,2]
[326521219,1715039443650,-1140.0,0.00023023,2]
[326521220,1715039443659,-1644.0,0.00023023,2]
[326521221,1715039443668,-3132.0,0.00023023,2]
[326521222,1715039443678,-5742.0,0.00023023,2]
[326521223,1715039443687,-37783.0,0.00023023,2]
[326521224,1715039443697,-4688.486,0.00023023,2]
[326521225,1715039443706,-1058.0,0.00023023,2]
[326521226,1715039443717,-193.16,0.0002306,2]